bitfinex/quotes_SOLUSD_20250201
["timestamp","ask_amount","ask_price","bid_price","bid_amount"]
[1738439124128,0.8443576,222.11,222.08,0.03]
[1738439129428,0.8443018,222.14,222.08,13.39876079]
[1738439129751,0.063,222.15,222.1,13.36876079]
[1738439130051,0.063,222.15,222.09,13.36876079]
[1738439130427,20.84412074,222.14,222.08,0.03]
[1738439131961,0.90722395,222.15,222.08,13.39876079]
[1738439132171,0.063,222.15,222.08,0.03]
[1738439132359,0.90720604,222.15,222.08,0.03]
[1738439136358,13.41184853,222.14,222.08,0.03]
[1738439136526,20.0,222.11,222.08,0.03]
[1738439137227,0.84428742,222.1,222.08,0.03]
[1738439137428,0.90731589,222.15,222.08,0.03]
[1738439139266,20.0,222.11,222.08,0.03]
[1738439139427,0.84449325,222.1,222.08,0.03]
[1738439139625,20.0,222.06,222.04,0.53]
[1738439139842,0.84461574,222.05,221.93,0.22]
[1738439140548,13.41184853,222.04,221.93,0.22]
[1738439140754,0.84461574,222.05,221.93,0.22]
[1738439140755,0.84472798,222.03,221.93,0.22]
[1738439140945,0.84465228,222.04,221.95,13.36876079]
[1738439141265,0.84465228,222.04,221.96,0.27557569]
[1738439141441,0.84465228,222.04,221.95,13.36876079]
[1738439141636,0.84465228,222.04,221.97,13.36876079]
[1738439141848,3.94,222.06,221.99,13.36876079]
[1738439142042,0.84459602,222.09,222.01,13.64420814]
[1738439142349,11.00223606,222.11,222.01,13.64420814]
[1738439142558,2.54579891,222.15,222.05,13.36876079]
[1738439142774,0.063,222.15,222.07,13.36876079]
[1738439142940,0.90710079,222.15,222.08,0.2746658]
[1738439143142,0.90710079,222.15,222.03,13.36876079]
[1738439143143,0.84421073,222.14,222.03,13.36876079]
[1738439143440,20.0,222.13,222.02,1.5227]
[1738439143641,0.84439541,222.12,222.02,1.5227]
[1738439145240,0.84439541,222.12,222.0,45.27519528]
[1738439145241,20.0,222.08,222.0,45.27519528]
[1738439145441,20.0,222.08,222.0,45.0]
[1738439148638,2.20725249,222.14,221.7,28.19461969]
[1738439148639,3.9684,222.0,221.7,28.19461969]
[1738439148834,3.9684,222.0,221.67,42.29192954]
[1738439148835,2.0,221.68,221.67,42.29192954]
[1738439149038,1.0,221.7,221.63,25.28105305]
[1738439149257,1.0,221.62,221.59,151.52382775]
[1738439149465,0.84632802,221.61,221.59,151.52382775]
[1738439149667,28.44264684,221.61,221.59,151.52382775]
[1738439150268,38.13496224,221.6,221.59,151.52382775]
[1738439150445,37.13496224,221.6,221.59,151.52382775]
[1738439150651,58.2304707,221.6,221.52,9.78822314]
[1738439150845,20.0,221.57,221.52,9.78822314]
[1738439151163,0.8465395,221.59,221.52,9.78822314]
[1738439151740,9.04093219,221.58,221.52,9.78822314]
[1738439152343,0.84633762,221.57,221.52,9.78822314]
[1738439152843,9.04093219,221.56,221.47,15.63309466]
[1738439153040,0.84640733,221.55,221.43,21.53380101]
[1738439153748,0.84640733,221.55,221.44,21.53380101]
[1738439153943,0.84640733,221.55,221.39,13.41184853]
[1738439154242,9.04093219,221.54,221.43,21.53380101]
[1738439154463,0.84662101,221.53,221.38,0.97988927]
[1738439154665,0.84662101,221.53,221.45,21.53380101]
[1738439154857,21.09550846,221.53,221.47,21.53380101]
[1738439155249,1.0,221.51,221.46,21.53380101]
[1738439155477,1.0,221.51,221.46,12.91278871]
[1738439155774,9.04093219,221.52,221.48,21.53380101]
[1738439155974,9.04093219,221.52,221.51,21.53380101]
[1738439156561,48.12519269,221.56,221.51,21.53380101]
[1738439156877,49.12519269,221.56,221.53,21.53380101]
[1738439157074,49.12519269,221.56,221.5,21.53380101]
[1738439157651,2.96895061,221.55,221.5,21.53380101]
[1738439157855,29.89820786,221.55,221.5,21.53380101]
[1738439160405,26.92925725,221.55,221.5,21.53380101]
[1738439160998,0.12549,221.51,221.46,21.53380101]
[1738439161182,26.92925725,221.55,221.5,21.53380101]
[1738439161373,26.92925725,221.55,221.52,21.53380101]
[1738439161576,26.92925725,221.55,221.54,21.53380101]
[1738439161780,26.92925725,221.55,221.52,21.53380101]
[1738439162997,1.0,221.62,221.54,21.53380101]
[1738439163187,1.0,221.64,221.57,21.53380101]
[1738439163699,1.0,221.63,221.57,21.53380101]
[1738439163996,0.12549,221.62,221.57,21.53380101]
[1738439165477,22.28420911,221.73,221.58,0.67677461]
[1738439165686,20.0,221.7,221.59,21.53380101]
[1738439165883,0.063,221.64,221.57,0.6767167]
[1738439166069,22.14057345,221.71,221.57,0.6767167]
[1738439166270,22.6448377,221.74,221.57,22.21051771]
[1738439166498,22.54159753,221.77,221.57,22.21051771]
[1738439166678,22.54159753,221.77,221.59,21.53380101]
[1738439166880,22.03039477,221.72,221.6,0.67669927]
[1738439167074,22.03039477,221.72,221.56,55.09581481]
[1738439167414,1.0,221.68,221.56,55.09581481]
[1738439167591,0.12549,221.67,221.56,55.09581481]
[1738439167899,0.12549,221.67,221.49,1.6646]
[1738439168067,0.12549,221.69,221.5,0.67705703]
[1738439168482,0.12549,221.64,221.5,0.67705703]
[1738439168680,13.53733853,221.64,221.5,0.67705703]
[1738439169182,13.53733853,221.64,221.49,1.6646]
[1738439169880,1.0,221.66,221.49,1.6646]
[1738439171390,2.42712835,221.65,221.49,1.6646]
[1738439171900,13.53733853,221.64,221.49,1.6646]
[1738439172075,0.12549,221.64,221.51,21.53380101]
[1738439172281,0.12549,221.64,221.53,21.53380101]
[1738439172677,4.06,221.73,221.55,21.53380101]
[1738439172877,4.06,221.73,221.57,21.53380101]
[1738439173099,5.19233995,221.73,221.58,0.67687458]
[1738439173302,4.06,221.73,221.59,21.53380101]
[1738439173805,4.06,221.73,221.57,21.53380101]
[1738439174104,0.12549,221.71,221.58,0.67681889]
[1738439174308,2.55408131,221.71,221.58,0.67681889]
[1738439174719,0.12549,221.68,221.51,21.53380101]
[1738439174924,0.12549,221.68,221.52,20.67701237]
[1738439175102,0.12549,221.68,221.53,21.53380101]
[1738439175292,13.41184853,221.7,221.54,0.67691729]
[1738439175810,0.12549,221.69,221.55,21.53380101]
[1738439176023,0.12549,221.66,221.55,21.53380101]
[1738439176312,0.12549,221.66,221.51,42.21072265]
[1738439176481,0.12549,221.66,221.51,0.67692164]
[1738439176681,0.12549,221.66,221.52,20.0]
[1738439177083,0.12549,221.66,221.53,0.67700784]
[1738439177484,0.12549,221.66,221.52,0.67699241]
[1738439177695,0.12549,221.64,221.52,0.67699241]
[1738439178107,0.12549,221.64,221.5,20.67701296]
[1738439178290,13.53733853,221.64,221.5,20.67701296]
[1738439178997,0.063,221.68,221.51,21.53380101]
[1738439179194,0.063,221.68,221.52,0.67703067]
[1738439179400,33.60033853,221.68,221.52,0.67703067]
[1738439179591,34.60033853,221.68,221.49,2.34158514]
[1738439179787,34.60033853,221.68,221.49,1.6646]
[1738439180109,0.12549,221.61,221.44,7.02554142]
[1738439180608,13.53733853,221.61,221.44,28.55934243]
[1738439181100,13.53733853,221.61,221.46,21.53380101]
[1738439181298,13.53733853,221.61,221.47,0.67721698]
[1738439181610,13.53733853,221.59,221.46,21.53380101]
[1738439181908,13.53733853,221.59,221.44,27.88220101]
[1738439182100,0.12549,221.59,221.46,21.53380101]
[1738439182299,0.12549,221.59,221.47,0.67716113]
[1738439182509,0.12549,221.59,221.46,21.53380101]
[1738439182804,13.53733853,221.59,221.44,28.55942726]
[1738439183214,0.12549,221.55,221.44,28.55942726]
[1738439183433,0.12549,221.55,221.44,27.88220101]
[1738439183796,20.0,221.62,221.44,27.88220101]
[1738439184216,13.53733853,221.57,221.44,27.88220101]
[1738439184902,0.12549,221.57,221.44,27.88220101]
[1738439185095,6.34503842,221.61,221.48,21.53380101]
[1738439185294,6.34503842,221.61,221.46,21.53380101]
[1738439185495,0.12549,221.6,221.46,21.53380101]
[1738439185801,0.12549,221.55,221.46,21.53380101]
[1738439186000,0.12549,221.55,221.46,22.21099044]
[1738439186198,0.12549,221.55,221.45,0.67718943]
[1738439186398,0.12549,221.55,221.44,6.3484]
[1738439187107,0.12549,221.53,221.44,7.02572308]
[1738439187318,0.12549,221.53,221.44,28.55952409]
[1738439187820,0.12549,221.53,221.46,21.53380101]
[1738439188023,0.12549,221.53,221.46,22.21097617]
[1738439188203,0.12549,221.53,221.46,21.53380101]
[1738439188399,0.12549,221.62,221.46,21.53380101]
[1738439188606,0.12549,221.62,221.45,0.67721542]
[1738439188607,0.12549,221.59,221.45,0.67721542]
[1738439189718,0.12549,221.57,221.45,0.67721542]
[1738439190628,0.12549,221.57,221.46,21.53380101]
[1738439190811,0.12549,221.57,221.47,0.67715048]
[1738439191011,0.12549,221.55,221.48,21.53380101]
[1738439191726,6.38609606,221.56,221.5,21.53380101]
[1738439191930,6.38609606,221.56,221.52,21.53380101]
[1738439192102,6.38609606,221.56,221.53,0.67699198]
[1738439192424,6.38609606,221.55,221.54,0.67699336]
[1738439192625,6.38609606,221.55,221.54,21.53380101]
[1738439194126,2.45619079,221.55,221.54,43.32915535]
[1738439194426,2.45619079,221.55,221.54,8.38350581]
[1738439194632,2.45619079,221.55,221.54,7.7066]
[1738439194806,2.45619079,221.55,221.54,6.092]
[1738439195208,2.45619079,221.55,221.54,41.71452741]
[1738439195420,0.063,221.68,221.54,46.22822741]
[1738439195627,0.063,221.68,221.58,21.53380101]
[1738439195824,0.12549,221.73,221.59,0.67678352]
[1738439196402,0.12549,221.74,221.59,0.67678352]
[1738439196821,0.12549,221.74,221.6,0.6767875]
[1738439197015,0.12549,221.74,221.57,22.21057296]
[1738439197332,0.12549,221.74,221.58,21.53380101]
[1738439197512,0.12549,221.74,221.59,0.67675881]
[1738439199536,0.12549,221.74,221.57,0.67679943]
[1738439199909,0.12549,221.7,221.57,0.67679943]
[1738439200133,0.12549,221.66,221.54,6.092]
[1738439201027,0.12549,221.66,221.54,6.76895349]
[1738439201704,1.12720073,221.77,221.56,21.53380101]
[1738439201910,5.64216434,221.77,221.57,22.21067239]
[1738439202112,0.12549,221.72,221.57,0.67687138]
[1738439202312,0.12549,221.72,221.56,0.67687052]
[1738439202719,0.12549,221.72,221.56,0.62936079]
[1738439203433,0.063,221.66,221.56,0.62936079]
[1738439203617,0.063,221.66,221.62,1.6514]
[1738439203819,0.063,221.66,221.62,2.28060619]
[1738439204027,0.063,221.66,221.62,1.6514]
[1738439204218,0.063,221.66,221.6,0.62924499]
[1738439204418,0.063,221.66,221.56,2.28061388]
[1738439205427,0.063,221.66,221.56,23.81441489]
[1738439207635,0.063,221.66,221.57,13.41184853]
[1738439207837,0.063,221.66,221.58,0.62935915]
[1738439208034,0.063,221.66,221.57,0.62928244]
[1738439210743,0.063,221.66,221.54,6.092]
[1738439211847,0.063,221.66,221.55,0.6294866]
[1738439211848,0.12549,221.65,221.55,0.6294866]
[1738439212225,0.12549,221.65,221.55,14.07843037]
[1738439212446,0.063,221.66,221.55,14.07843037]
[1738439212631,0.063,221.66,221.56,13.44894377]
[1738439212836,0.063,221.66,221.57,0.62933943]
[1738439213033,0.063,221.66,221.58,13.44894377]
[1738439213246,0.063,221.66,221.58,0.62930202]
[1738439213951,1.49220973,221.65,221.43,41.75556258]
[1738439214146,20.0,221.61,221.45,0.70723305]
[1738439214350,0.67680973,221.6,221.45,0.70723305]
[1738439214824,0.12549,221.59,221.45,0.70723305]
[1738439215023,0.67680973,221.58,221.55,0.03]
[1738439215230,20.0,221.61,221.55,0.03]
[1738439215231,0.67680973,221.6,221.55,0.03]
[1738439215456,0.12549,221.59,221.55,0.03]
[1738439215648,0.67680973,221.59,221.55,0.03]
[1738439215825,0.67680973,221.64,221.55,0.03]
[1738439217139,0.67680973,221.64,221.53,12.65588523]
[1738439217451,0.67680973,221.64,221.55,13.44894377]
[1738439217650,0.12549,221.63,221.56,0.3384851]
[1738439218462,0.063,221.66,221.56,0.3384851]
[1738439218752,0.8154,221.65,221.45,0.03]
[1738439218953,0.84658679,221.64,221.45,0.03]
[1738439219252,0.12549,221.59,221.45,0.03]
[1738439219447,0.12549,221.57,221.45,0.03]
[1738439219646,0.12549,221.55,221.45,0.03]
[1738439219956,0.12549,221.53,221.45,0.03]
[1738439220252,0.12549,221.51,221.45,0.03]
[1738439220628,0.12549,221.58,221.45,0.03]
[1738439220958,0.12549,221.56,221.45,0.03]
[1738439221127,0.12549,221.54,221.45,0.03]
[1738439221331,0.12549,221.52,221.45,0.03]
[1738439221549,0.12549,221.5,221.45,0.03]
[1738439221943,0.12549,221.48,221.36,0.03]
[1738439222268,0.12549,221.46,221.36,0.03]
[1738439222750,0.12549,221.5,221.37,20.0]
[1738439222948,0.12549,221.48,221.37,20.0]
[1738439223140,0.12549,221.46,221.37,20.0]
[1738439223339,0.12549,221.44,221.37,20.0]
[1738439223958,0.12549,221.5,221.37,20.0]
[1738439224132,0.12549,221.48,221.37,20.0]
[1738439224334,0.12549,221.46,221.37,20.0]
[1738439224733,0.12549,221.5,221.36,0.03]
[1738439225050,20.0,221.52,221.36,0.03]
[1738439225051,0.12549,221.48,221.36,0.03]
[1738439225264,0.12549,221.48,221.39,13.41184853]
[1738439225445,3.84,221.56,221.4,1.5441]
[1738439225756,0.12549,221.54,221.4,1.5441]
[1738439225961,0.12549,221.52,221.4,1.5441]
[1738439226249,0.12549,221.5,221.4,1.5441]
[1738439226462,0.84664931,221.49,221.4,1.5441]
[1738439226628,0.12549,221.5,221.4,1.5441]
[1738439226828,0.84664409,221.55,221.41,19.73614853]
[1738439227030,0.063,221.53,221.41,19.73614853]
[1738439227251,0.12549,221.52,221.41,19.73614853]
[1738439227649,0.063,221.53,221.41,19.73614853]
[1738439228054,0.12549,221.52,221.41,19.73614853]
[1738439228256,0.12549,221.5,221.41,19.73614853]
[1738439229141,0.063,221.53,221.41,6.3243]
[1738439229346,0.12549,221.52,221.41,6.3243]
[1738439229534,0.12549,221.5,221.41,6.3243]
[1738439229739,0.12549,221.5,221.39,13.41184853]
[1738439230033,0.84672659,221.49,221.36,21.55133559]
[1738439230238,0.12549,221.48,221.36,0.03]
[1738439230640,0.12549,221.5,221.36,0.03]
[1738439230845,0.12549,221.48,221.36,20.03]
[1738439231045,0.12549,221.46,221.36,20.03]
[1738439231262,0.84682045,221.45,221.36,20.03]
[1738439231566,0.12549,221.46,221.36,20.03]
[1738439231742,0.8468318,221.51,221.36,41.55133559]
[1738439232650,0.12549,221.5,221.36,41.55133559]
[1738439232957,0.12549,221.48,221.36,0.03]
[1738439233160,0.12549,221.46,221.36,0.03]
[1738439233537,0.12549,221.5,221.36,0.03]
[1738439233743,0.12549,221.48,221.36,0.03]
[1738439233952,0.12549,221.46,221.36,0.03]
[1738439234354,0.12549,221.5,221.36,0.03]
[1738439234551,0.12549,221.48,221.36,0.03]
[1738439234744,0.12549,221.46,221.36,0.03]
[1738439234939,20.0,221.52,221.36,0.03]
[1738439234940,0.12549,221.44,221.36,0.03]
[1738439235360,0.12549,221.5,221.36,0.03]
[1738439235661,20.0,221.52,221.36,0.03]
[1738439235662,0.12549,221.48,221.36,0.03]
[1738439235858,0.12549,221.46,221.36,0.03]
[1738439236250,0.12549,221.44,221.36,0.03]
[1738439236445,0.12549,221.42,221.36,0.03]
[1738439236871,0.12549,221.45,221.36,0.03]
[1738439237044,0.12549,221.43,221.36,0.03]
[1738439237363,0.12549,221.41,221.36,0.03]
[1738439237562,0.84704285,221.4,221.36,0.03]
[1738439237770,0.84697526,221.46,221.36,0.03]
[1738439238268,0.12549,221.45,221.36,0.03]
[1738439238487,0.84687684,221.44,221.36,0.03]
[1738439238771,0.8154,221.52,221.36,21.55133559]
[1738439238948,0.12549,221.49,221.36,0.03]
[1738439239148,0.12549,221.47,221.36,0.03]
[1738439239463,0.12549,221.45,221.36,0.03]
[1738439239767,0.84692387,221.46,221.36,0.03]
[1738439239768,0.12549,221.48,221.36,0.03]
[1738439240063,0.12549,221.46,221.36,0.03]
[1738439240260,0.84689652,221.45,221.36,0.03]
[1738439240461,0.12549,221.48,221.36,0.03]
[1738439240648,0.12549,221.46,221.36,0.03]
[1738439241362,0.12549,221.48,221.36,0.03]
[1738439241554,0.12549,221.46,221.36,0.03]
[1738439241756,0.84683908,221.45,221.36,0.03]
[1738439242071,0.12549,221.48,221.36,0.03]
[1738439242249,0.12549,221.46,221.36,0.03]
[1738439242570,0.12549,221.44,221.36,0.03]
[1738439242764,0.12549,221.42,221.36,0.03]
[1738439243966,0.12549,221.4,221.36,0.03]
[1738439244140,0.8471714,221.39,221.36,0.03]
[1738439244343,0.8471087,221.42,221.36,0.03]
[1738439244557,0.12549,221.4,221.36,0.03]
[1738439245369,0.12549,221.38,221.36,0.03]
[1738439245563,0.84712012,221.37,221.36,0.03]
[1738439245763,0.12549,221.38,221.36,0.03]
[1738439245958,0.84712122,221.44,221.36,0.03]
[1738439246273,0.84699434,221.49,221.36,0.03]
[1738439246489,0.12549,221.48,221.36,0.03]
[1738439246775,0.12549,221.46,221.36,0.03]
[1738439246948,0.12549,221.44,221.36,0.03]
[1738439247266,0.84708416,221.43,221.36,0.03]
[1738439247483,0.12549,221.42,221.36,0.03]
[1738439247679,20.0,221.45,221.28,6.3243]
[1738439247680,0.12549,221.4,221.28,6.3243]
[1738439247893,0.12549,221.38,221.28,6.3243]
[1738439248672,0.12549,221.43,221.28,6.3243]
[1738439248870,0.12549,221.41,221.28,6.3243]
[1738439249048,0.12549,221.39,221.28,6.3243]
[1738439249250,0.12549,221.37,221.28,6.3243]
[1738439249551,0.97264205,221.37,221.28,6.3243]
[1738439249774,0.12549,221.42,221.28,6.3243]
[1738439249978,0.12549,221.4,221.28,6.3243]
[1738439250176,20.0,221.44,221.36,0.03]
[1738439250177,0.12549,221.38,221.36,0.03]
[1738439250766,0.12549,221.42,221.36,0.03]
[1738439250971,0.12549,221.4,221.36,0.03]
[1738439251171,0.12549,221.38,221.36,0.03]
[1738439251375,0.12549,221.36,221.28,6.3243]
[1738439251879,0.12549,221.36,221.23,5.0]
[1738439251880,20.12549,221.32,221.23,5.0]
[1738439252066,0.84766095,221.31,221.14,20.6613013]
[1738439252266,0.8154,221.36,221.2,13.47708425]
[1738439252267,0.84784272,221.34,221.2,13.47708425]
[1738439252476,0.84729837,221.35,221.17,5.9307]
[1738439252672,0.84729837,221.35,221.22,13.47708425]
[1738439252867,0.8471786,221.4,221.24,13.47708425]
[1738439253063,0.8471786,221.4,221.22,13.47708425]
[1738439253295,0.12549,221.39,221.2,26.88893278]
[1738439253581,20.8471786,221.4,221.22,13.47708425]
[1738439253582,0.12549,221.37,221.22,13.47708425]
[1738439253783,0.84726945,221.36,221.23,13.41184853]
[1738439253979,0.84720415,221.39,221.25,13.41184853]
[1738439254300,5.3354,221.38,221.12,21.58527552]
[1738439254507,1.0,221.36,221.12,21.58527552]
[1738439254784,0.84763133,221.35,221.21,21.58527552]
[1738439255003,0.84736097,221.37,221.23,21.58527552]
[1738439255580,0.84736097,221.37,221.22,6.4307]
[1738439256979,0.84736097,221.37,221.19,1.5277]
[1738439257469,0.84736097,221.37,221.24,21.58527552]
[1738439257786,0.84720491,221.41,221.24,21.58527552]
[1738439258086,0.84720491,221.41,221.2,1.0]
[1738439258087,0.84720491,221.41,221.26,21.58527552]
[1738439258295,20.0,221.4,221.28,21.58527552]
[1738439258473,0.84707582,221.39,221.28,21.58527552]
[1738439259173,0.84707259,221.41,221.28,21.58527552]
[1738439259476,20.0,221.4,221.26,21.58527552]
[1738439259688,0.84708279,221.39,221.26,21.58527552]
[1738439260092,0.84706557,221.4,221.26,21.58527552]
[1738439260292,0.84706557,221.4,221.28,21.58527552]
[1738439260675,0.91001062,221.46,221.28,21.58527552]
[1738439261506,20.0,221.45,221.28,21.58527552]
[1738439261784,0.84701539,221.44,221.28,21.58527552]
[1738439261993,0.84701539,221.44,221.3,21.58527552]
[1738439262369,20.84701539,221.44,221.27,6.2815]
[1738439263288,20.84706946,221.44,221.27,6.78348772]
[1738439263488,20.84706946,221.44,221.28,0.50224366]
[1738439265078,20.84706946,221.44,221.29,13.41184853]
[1738439265284,20.84706946,221.44,221.31,13.41184853]
[1738439266875,20.84706946,221.44,221.29,13.41184853]
[1738439267074,20.84706946,221.44,221.28,0.50203095]
[1738439267075,20.84706946,221.44,221.31,13.41184853]
[1738439267581,20.84706946,221.44,221.29,13.41184853]
[1738439267883,20.84706946,221.44,221.31,13.41184853]
[1738439268090,20.84706946,221.44,221.29,13.41184853]
[1738439268269,20.84706946,221.44,221.31,13.41184853]
[1738439269193,20.84706946,221.44,221.29,13.41184853]
[1738439269401,21.96821325,221.44,221.31,13.41184853]
[1738439269973,21.96821325,221.44,221.29,13.41184853]
[1738439270197,21.96821325,221.44,221.31,13.41184853]
[1738439270692,21.96821325,221.44,221.29,13.41184853]
[1738439270894,21.96821325,221.44,221.31,13.41184853]
[1738439273082,21.96821325,221.44,221.31,13.41184853]
[1738439273294,21.96821325,221.44,221.29,13.41184853]
[1738439273475,21.96821325,221.44,221.31,13.41184853]
[1738439274077,0.84706946,221.44,221.32,0.50193172]
[1738439274289,0.909965,221.46,221.29,27.39981913]
[1738439274995,20.0,221.44,221.29,27.39981913]
[1738439275186,0.8469636,221.43,221.29,27.39981913]
[1738439275577,0.8469636,221.43,221.31,13.41184853]
[1738439275779,0.8469636,221.43,221.33,13.41184853]
[1738439275978,0.8469636,221.43,221.35,13.41184853]
[1738439276182,0.063,221.44,221.36,0.50159407]
[1738439276780,0.063,221.44,221.37,13.41184853]
[1738439276980,0.063,221.44,221.39,13.41184853]
[1738439277205,0.063,221.44,221.4,0.50121401]
[1738439278003,0.063,221.44,221.41,13.41184853]
[1738439278179,0.063,221.44,221.43,13.41184853]
[1738439278509,0.063,221.44,221.4,13.41184853]
[1738439278703,0.063,221.44,221.41,0.5010748]
[1738439279784,0.063,221.44,221.42,13.41184853]
[1738439279985,0.063,221.44,221.43,0.50082233]
[1738439280791,0.063,221.44,221.43,28.95806266]
[1738439281283,0.063,221.46,221.44,13.41184853]
[1738439281484,0.063,221.46,221.45,27.39843005]
[1738439282510,0.063,221.46,221.45,13.41184853]
[1738439282689,0.063,221.46,221.39,6.392]
[1738439283004,0.063,221.46,221.4,0.50131166]
[1738439283309,0.063,221.46,221.41,13.41184853]
[1738439283498,0.063,221.46,221.43,13.41184853]
[1738439284084,0.063,221.46,221.39,6.392]
[1738439284488,0.063,221.46,221.4,13.41184853]
[1738439284912,0.063,221.46,221.4,26.89804033]
[1738439285226,0.063,221.46,221.4,13.41184853]
[1738439286385,0.063,221.46,221.38,13.41184853]
[1738439286712,0.063,221.46,221.4,13.41184853]
[1738439286896,0.15676381,221.51,221.38,13.4861918]
[1738439287211,0.063,221.53,221.42,13.41184853]
[1738439287514,0.063,221.53,221.44,13.41184853]
[1738439287687,0.063,221.53,221.46,13.41184853]
[1738439288010,0.063,221.53,221.47,0.50073426]
[1738439288705,0.063,221.46,221.43,0.500733]
[1738439289790,0.063,221.46,221.44,13.41184853]
[1738439289993,0.063,221.46,221.45,13.91262023]
[1738439291214,0.063,221.46,221.45,27.39881203]
[1738439292598,0.063,221.46,221.45,31.91441203]
[1738439293091,0.063,221.53,221.46,13.41184853]
[1738439293293,0.063,221.53,221.49,26.89804033]
[1738439293498,0.063,221.53,221.51,13.41184853]
[1738439293692,0.063,221.53,221.52,13.91212102]
[1738439294308,0.063,221.53,221.52,27.39831282]
[1738439295112,0.063,221.53,221.52,13.91212102]
[1738439296023,0.063,221.53,221.52,13.41184853]
[1738439296693,0.063,221.53,221.46,0.5005569]
[1738439296892,0.063,221.53,221.43,0.50070983]
[1738439297816,0.063,221.53,221.44,13.41184853]
[1738439298196,0.063,221.53,221.42,0.03]
[1738439298402,0.84669911,221.52,221.42,0.03]
[1738439298800,0.84669911,221.52,221.42,0.53104342]
[1738439299425,0.8466031,221.51,221.42,0.53104342]
[1738439299615,0.90958867,221.53,221.42,0.53104342]
[1738439299924,0.063,221.53,221.43,13.41184853]
[1738439300098,0.063,221.53,221.45,13.41184853]
[1738439300513,0.063,221.53,221.47,13.41184853]
[1738439300999,0.063,221.53,221.5,13.41184853]
[1738439301214,0.063,221.53,221.52,26.89804033]
[1738439301601,0.063,221.53,221.52,27.3981746]
[1738439302223,0.063,221.66,221.55,20.0]
[1738439302412,0.063,221.66,221.61,13.4861918]
[1738439302596,0.063,221.66,221.63,13.4861918]
[1738439302801,0.063,221.66,221.65,26.89804033]
[1738439303827,0.063,221.66,221.65,34.91136657]
[1738439304520,0.063,221.66,221.65,56.41088461]
[1738439304728,0.063,221.66,221.65,34.91136657]
[1738439306311,0.063,221.66,221.65,13.41184853]
[1738439307227,0.063,221.66,221.65,34.91136657]
[1738439307805,0.063,221.66,221.65,35.91136657]
[1738439308405,0.063,221.66,221.65,34.91136657]
[1738439308619,0.063,221.66,221.65,56.41088461]
[1738439309025,0.063,221.69,221.66,34.91136657]
[1738439309223,0.063,221.69,221.68,21.49951804]
[1738439309931,0.063,221.69,221.68,34.91136657]
[1738439310326,0.063,221.69,221.68,35.40992875]
[1738439311140,0.063,221.82,221.75,13.41184853]
[1738439311332,0.063,221.82,221.75,13.91020988]
[1738439312115,0.063,221.82,221.69,21.49951804]
[1738439312116,0.90832072,221.82,221.7,0.49870518]
[1738439312633,0.90832072,221.82,221.71,13.41184853]
[1738439312818,0.90832072,221.82,221.72,0.49863069]
[1738439313623,0.063,221.82,221.73,13.41184853]
[1738439313818,0.063,221.82,221.75,13.41184853]
[1738439314642,0.063,221.82,221.66,20.0]
[1738439314643,0.063,221.82,221.72,13.41184853]
[1738439314819,0.063,221.82,221.73,0.49856754]
[1738439315153,0.063,221.82,221.74,34.91136657]
[1738439315329,0.063,221.82,221.75,13.91014219]
[1738439318139,0.063,221.82,221.75,35.40966023]
[1738439318437,0.063,221.82,221.75,13.91014219]
[1738439319028,0.063,221.82,221.75,35.40966023]
[1738439319546,0.063,221.82,221.75,13.91014219]
[1738439323240,0.063,221.82,221.67,6.1717]
[1738439323241,0.063,221.82,221.68,0.49852573]
[1738439323459,0.1568,221.79,221.67,0.49911911]
[1738439323738,0.8456939,221.78,221.64,0.49923661]
[1738439324123,0.84581508,221.75,221.59,0.49945898]
[1738439324532,0.84581508,221.75,221.6,13.41184853]
[1738439324739,0.84581508,221.75,221.62,13.41184853]
[1738439324943,0.84581508,221.75,221.59,0.49947489]
[1738439325239,0.84581508,221.75,221.6,13.41184853]
[1738439325544,0.84581508,221.75,221.62,13.41184853]